[Event "Lliga Catalana 2024"]
[Site "Catalonia"]
[Date "2024.01.20"]
[Round "1.3"]
[White "Alonso Bouza, Julio Javier"]
[Black "Sabria Batlle, Pol"]
[Result "1-0"]
[ECO "B21"]
[WhiteElo "2357"]
[BlackElo "2282"]
[Annotator "RC"]
[PlyCount "53"]
[EventDate "2024.01.18"]
[EventType "team-tourn"]
[EventCountry "ESP"]
[SourceTitle "playchess.com"]
[Source "ChessBase"]
[SourceQuality "1"]
[TimeControl "5400+30"]

1. e4 {[%emt 0:00:03]} c5 {[%emt 0:00:21]} 2. d3 {[%emt 0:00:07]} Nc6 {[%emt 0:02:36]} 3. f4 {[%emt 0:00:08]} g6 {[%emt 0:06:09]} 4. Nf3 {[%emt 0:00:08]} Bg7 {[%emt 0:00:08]} 5. Be2 {[%emt 0:00:14]} e6 {[%emt 0:09:00]} 6. O-O {[%emt 0:00:55]} Nge7 {[%emt 0:07:35]} 7. c3 {[%emt 0:00:50]} O-O {[%emt 0:00:40]} 8. Be3 {[%emt 0:01:10]} b6 {[%emt 0:09:07]} 9. Nbd2 {[%emt 0:11:39]} d5 {[%emt 0:24:18]} 10. Bf2 {[%emt 0:01:26]} d4 {[%emt 0:14:19]} 11. Rc1 {[%emt 0:17:16]} dxc3 {[%emt 0:04:40]} 12. bxc3 {[%emt 0:00:06]} Ba6 {[%emt 0:00:37]} 13. Nb3 {[%emt 0:01:40]} Qc7 {[%emt 0:05:01]} 14. Bg3 {[%emt 0:06:17]} Qd7 {[%emt 0:00:19]} 15. d4 {[%emt 0:10:23]} Bxe2 {[%emt 0:00:50]} 16. Qxe2 {[%emt 0:00:01]} cxd4 {[%emt 0:02:21]} 17. cxd4 {[%emt 0:10:33]} Nxd4 {[%emt 0:00:07]} 18. Nfxd4 {[%emt 0:00:16]} Bxd4+ {[%emt 0:00:03]} 19. Nxd4 {[%emt 0:00:09]} Qxd4+ {[%emt 0:00:03]} 20. Bf2 {[%emt 0:02:23]} Qd6 {[%emt 0:00:04]} 21. Bh4 {[%emt 0:02:44]} Rac8 {[%emt 0:06:58]} 22. Bf6 {[%emt 0:08:29]} Rxc1 {[%emt 0:00:51]} 23. Rxc1 {[%emt 0:00:02]} Qxf4 {[%emt 0:00:43]} 24. Rf1 {[%emt 0:00:45]} Qd6 {[%emt 0:00:22]} 25. Qe3 {[%emt 0:01:43]} e5 {[%emt 0:00:46]} 26. Qh6 {[%emt 0:00:45]} Nf5 {[%emt 0:00:32]} 27. Rxf5 {[%emt 0:00:15]} 1-0

[Event "Lliga Catalana 2024"]
[Site "Catalonia"]
[Date "2024.01.20"]
[Round "1.3"]
[White "Oms Fuentes, Lluis"]
[Black "Lorenzo De La Riva, Lazaro"]
[Result "0-1"]
[ECO "B18"]
[WhiteElo "2329"]
[BlackElo "2419"]
[Annotator "RC"]
[PlyCount "77"]
[EventDate "2024.01.18"]
[EventType "team-tourn"]
[EventCountry "ESP"]
[SourceTitle "playchess.com"]
[Source "ChessBase"]
[SourceQuality "1"]
[TimeControl "5400+30"]

1. e4 {[%emt 0:26:22]} c6 {[%emt 1:09:07]} 2. d4 {[%emt 0:00:30]} d5 {[%emt 0:00:30]} 3. Nc3 {[%emt 0:00:30]} dxe4 {[%emt 0:00:30]} 4. Nxe4 {[%emt 0:00:30]} Bf5 {[%emt 0:00:30]} 5. Ng3 {[%emt 0:00:30]} Bg6 {[%emt 0:00:30]} 6. Nf3 {[%emt 0:00:30]} Nd7 {[%emt 0:00:30]} 7. Bd3 {[%emt 0:00:30]} e6 {[%emt 0:00:30]} 8. O-O {[%emt 0:00:30]} Ngf6 {[%emt 0:00:30]} 9. c4 {[%emt 0:00:30]} Be7 {[%emt 0:00:30]} 10. Bxg6 {[%emt 0:00:30]} hxg6 {[%emt 0:00:30]} 11. b3 {[%emt 0:00:30]} Qa5 {[%emt 0:00:30]} 12. Bb2 {[%emt 0:00:30]} Ba3 {[%emt 0:00:30]} 13. Qc1 {[%emt 0:00:30]} Bxb2 {[%emt 0:00:30]} 14. Qxb2 {[%emt 0:00:30]} O-O-O {[%emt 0:00:30]} 15. a4 {[%emt 0:00:30]} Qc7 {[%emt 0:00:30]} 16. b4 {[%emt 0:00:30]} Nh5 {[%emt 0:00:30]} 17. a5 {[%emt 0:00:30]} Qf4 {[%emt 0:00:30]} 18. Rae1 {[%emt 0:00:30]} Nhf6 {[%emt 0:00:30]} 19. a6 {[%emt 0:00:30]} b6 {[%emt 0:00:30]} 20. Qc2 {[%emt 0:00:30]} g5 {[%emt 0:00:30]} 21. Qa4 {[%emt 0:00:30]} Kc7 {[%emt 0:00:30]} 22. d5 {[%emt 0:00:30]} exd5 {[%emt 0:00:30]} 23. cxd5 {[%emt 0:00:30]} Nxd5 {[%emt 0:00:30]} 24. Re4 {[%emt 0:00:30]} Qf6 {[%emt 0:00:30]} 25. Rc4 {[%emt 0:00:30]} Rh6 {[%emt 0:00:30]} 26. Rfc1 {[%emt 0:00:30]} Ne7 {[%emt 0:00:30]} 27. b5 {[%emt 0:00:30]} c5 {[%emt 0:00:30]} 28. Ne4 {[%emt 0:00:30]} Qf5 {[%emt 0:00:30]} 29. Nexg5 {[%emt 0:00:30]} Nd5 {[%emt 0:00:30]} 30. Ne4 {[%emt 0:00:30]} Ne5 {[%emt 0:00:30]} 31. Nxe5 {[%emt 0:00:30]} Qxe5 {[%emt 0:00:30]} 32. h3 {[%emt 0:00:30]} f5 {[%emt 0:00:30]} 33. Nxc5 {[%emt 0:00:30]} bxc5 {[%emt 0:00:30]} 34. Rxc5+ {[%emt 0:00:30]} Kb8 {[%emt 0:00:30]} 35. Qc4 {[%emt 0:00:30]} Rhh8 {[%emt 0:00:30]} 36. b6 {[%emt 0:00:30]} axb6 {[%emt 0:00:30]} 37. Qb5 {[%emt 0:00:30]} Qe6 {[%emt 0:00:30]} 38. Rc6 {[%emt 0:00:30]} Rd6 {[%emt 0:00:30]} 39. R6c2 {[%emt 0:00:30]} 0-1

[Event "Lliga Catalana 2024"]
[Site "Catalonia"]
[Date "2024.03.09"]
[Round "1.3"]
[White "Benedetti, Julio"]
[Black "Porras Mateo, Felipe"]
[Result "1/2-1/2"]
[ECO "C54"]
[WhiteElo "2239"]
[BlackElo "2361"]
[Annotator "TA"]
[PlyCount "22"]
[EventDate "2024.01.18"]
[EventType "team-tourn"]
[EventCountry "ESP"]
[SourceTitle "playchess.com"]
[Source "ChessBase"]
[SourceQuality "1"]
[TimeControl "5400+30"]

{[%evp 13,22,19,26,13,13,13,9,0,14,-44,31]} 1. e4 {[%emt 0:02:29]} e5 {[%emt 0:00:13]} 2. Nf3 {[%emt 0:00:05]} Nc6 {[%emt 0:00:12]} 3. Bc4 {[%emt 0:00:12]} Nf6 {[%emt 0:00:26]} 4. d3 {[%emt 0:00:18]} Bc5 {[%emt 0:01:01]} 5. c3 {[%emt 0:00:14]} d6 {[%emt 0:00:25]} 6. a4 {[%emt 0:00:30]} a5 {[%emt 0:00:24]} 7. O-O {[%emt 0:01:03]} O-O {[%emt 0:00:56]} 8. h3 {[%emt 0:00:40]} h6 {[%emt 0:01:06]} 9. Re1 {[%emt 0:01:17]} Be6 {[%emt 0:07:28]} 10. Nbd2 {[%emt 0:06:29]} Ba7 {[%emt 0:03:32]} 11. Nf1 {[%emt 0:08:49]} (11. Bxe6 $11 fxe6 12. Nc4) 11... d5 {[%emt 0:06:59] A rather calm draw.   Weighted Error Value: White=0.25 (precise) /Black=0.05 (flawless) .  Mistake:       	White=1     	Black=1      OK:         	White=1     	Black=2} (11... Nxe4 $15 12. Rxe4 d5 13. Bxd5 Bxd5) 1/2-1/2

[Event "Lliga Catalana 2024"]
[Site "Catalonia"]
[Date "2024.03.09"]
[Round "1.4"]
[White "Ribera Veganzones, Serni"]
[Black "Alfaro Rojas, Alfonso Jose"]
[Result "1/2-1/2"]
[ECO "B33"]
[WhiteElo "2361"]
[BlackElo "2317"]
[Annotator "TA"]
[PlyCount "91"]
[EventDate "2024.01.18"]
[EventType "team-tourn"]
[EventCountry "ESP"]
[SourceTitle "playchess.com"]
[Source "ChessBase"]
[SourceQuality "1"]
[TimeControl "5400+30"]

{[%evp 35,91,33,25,14,20,1,0,0,18,-25,-27,-50,-62,-158,-166,-200,-189,-181,-177,-193,-186,-272,-224,-381,-414,-406,-404,-407,-405,-412,-417,-460,-460,-445,-386,-418,-115,-111,0,0,0,0,0,0,0,0,919,0,0,0,979,0,0,0,996,977,937,-29984]} 1. e4 {[%emt 0:00:04]} c5 {[%emt 0:00:30]} 2. Nf3 {[%emt 0:00:09]} Nc6 {[%emt 0:00:06]} 3. d4 {[%emt 0:00:08]} cxd4 {[%emt 0:00:06]} 4. Nxd4 {[%emt 0:00:06]} Nf6 {[%emt 0:00:23]} 5. Nc3 {[%emt 0:00:16]} e5 {[%emt 0:00:11]} 6. Ndb5 {[%emt 0:00:09]} d6 {[%emt 0:00:06]} 7. Nd5 {[%emt 0:00:10]} Nxd5 {[%emt 0:00:31]} 8. exd5 {[%emt 0:00:09]} Ne7 {[%emt 0:00:05]} 9. c4 {[%emt 0:00:17]} Nf5 {[%emt 0:00:06]} 10. Bd3 {[%emt 0:00:42]} g6 {[%emt 0:00:13]} 11. O-O {[%emt 0:02:23]} a6 {[%emt 0:00:15] B33: Sicilian: Pelikan and Sveshnikov Variations.} 12. Nc3 {[%emt 0:00:22]} Bg7 {[%emt 0:00:31]} 13. a4 {[%emt 0:05:33]} O-O {[%emt 0:05:17]} 14. a5 {[%emt 0:01:18]} Re8 {[%emt 0:03:28]} 15. Bd2 {[%emt 0:07:16]} Nd4 $146 {[%emt 0:04:59]} ({Predecessor:} 15... Qh4 16. Ne4 h6 17. Qa4 Rd8 18. Rae1 Nd4 19. Bb4 f5 20. Nxd6 e4 21. Be2 Be5 {1-0 Berg,E (2120)-Pihlajasalo,A (2080) Four Nations U20 1994 (2)}) 16. b4 {[%emt 0:01:35]} Bd7 {[%emt 0:04:56]} 17. Kh1 {[%emt 0:08:56]} Rc8 {[%emt 0:04:59]} 18. Rc1 {[%emt 0:05:20]} f5 {[%emt 0:01:17]} 19. f3 {[%emt 0:00:58]} Qh4 {[%emt 0:20:33]} 20. Be1 {[%emt 0:05:57]} Qg5 {[%emt 0:03:49]} 21. Bf2 {[%emt 0:01:38]} Bh6 {[%emt 0:00:51]} 22. Rb1 {[%emt 0:03:37]} Qd2 {[%emt 0:01:14]} 23. Qxd2 {[%emt 0:06:20]} Bxd2 {[%emt 0:00:09]} 24. Ne2 {[%emt 0:03:12]} (24. Bxd4 $15 exd4 25. Nd1) 24... e4 $1 $17 {[%emt 0:08:25]} 25. fxe4 {[%emt 0:13:41]} fxe4 {[%emt 0:01:12]} 26. Nxd4 {[%emt 0:01:21]} exd3 {[%emt 0:00:15]} 27. Nf3 {[%emt 0:06:59]} Bh6 {[%emt 0:06:02]} 28. c5 {[%emt 0:00:31]} (28. Rbd1 {was the only defense.}) 28... d2 $19 {[%emt 0:03:44]} 29. cxd6 $2 {[%emt 0:03:06]} (29. Kg1 {is a better defense.}) 29... Rc3 $19 {[%emt 0:10:20]} 30. Bd4 {[%emt 0:03:53]} Rd3 {[%emt 0:06:10]} (30... Rc1 31. Nxd2 Rxf1+ 32. Nxf1 $14) 31. Ne5 {[%emt 0:01:25]} Rxe5 {[%emt 0:00:39]} (31... Rxd4 32. Nxd7 Rd8 (32... Rxd5 $2 33. Nf6+ Kh8 34. Nxe8 $18) 33. Ne5) 32. Bxe5 {[%emt 0:00:07]} Rxd5 {[%emt 0:00:23]} 33. Bg3 {[%emt 0:01:50]} Ba4 {[%emt 0:00:29]} 34. Rbd1 {[%emt 0:00:37]} Rd4 {[%emt 0:02:24]} 35. Be5 {[%emt 0:02:53] [#]} Rc4 $2 {[%emt 0:01:18]} (35... Rxb4 36. Bc3 Rf4 37. Rxf4 Bxf4 38. Bxd2 (38. d7 Bxd7 39. Bxd2 Bg4 $11) 38... Bxd1 39. Bxf4 $14) (35... Rd3 $1 $19 36. Bg3 Bxd1 37. Rxd1 Be3) 36. Bf6 $17 {[%emt 0:04:17]} Rc1 {[%emt 0:04:38]} (36... Rxb4 37. Bc3 Rf4 38. Rxf4 Bxf4 39. Bxd2 (39. d7 Bxd7 40. Bxd2 Bg4 $11) 39... Bxd1 40. Bxf4 $11) ({Black should try} 36... Rc8 $17 37. b5 (37. d7 $2 Bxd7 38. Bd4 Rc1 $19) 37... Bxd1) 37. h4 $1 $11 {[%emt 0:01:01]} Rxd1 {[%emt 0:03:42]} (37... Bxd1 $5 38. d7 $8 Bb3 39. d8=Q+ Kf7 $11 (39... Bf8 40. Kh2 $16)) 38. Rxd1 {[%emt 0:00:06]} Kf7 {[%emt 0:00:17]} (38... Bxd1 $5 39. d7 $8 Bb3 40. d8=Q+ (40. d8=B d1=Q+ 41. Kh2 Bf4+ 42. g3 Qe2+ 43. Kh1 Bd5+ 44. Kg1 Be3#) 40... Kf7 41. Qe7+ Kg8 42. Qd8+ (42. Qxb7 $2 d1=Q+ 43. Kh2 Qd6+ 44. g3 Qxf6 $19) 42... Kf7 43. Qc7+ Kg8 44. Qd8+ $11 (44. Qxb7 $2 d1=Q+ 45. Kh2 Qd6+ 46. g3 Qxf6 $19)) 39. d7 $1 {[%emt 0:01:48]} Bxd1 {[%emt 0:01:12]} (39... Bxd7 $2 40. Bg5 Bf8 (40... Bxg5 $2 41. hxg5 Bc6 42. Rxd2 $18) 41. Bxd2 $18) 40. d8=Q {[%emt 0:00:09]} (40. d8=B Bf3 41. Bg5 d1=Q+ (41... d1=R+ $2 42. Kh2 $19) 42. Kh2 Qe2 (42... Qd6+ 43. Kh3 Qe6+ 44. Kg3 Qg4+ 45. Kf2 Qxg2+ 46. Ke3 Bg7 47. Bgf6 Bxf6 48. Bxf6 Kxf6 49. Kd3 Ke5 50. Kc3 Bd1 51. b5 Qc2+ 52. Kb4 Qb3+ 53. Kc5 Qxb5#) (42... Bxg5 43. hxg5 Qe2 44. Kg3 Bxg2 45. Kf4 Qe4+ 46. Kg3 Qf3+ 47. Kh2 Bf1 48. Kg1 Qg2#) 43. Kg3 Bxg2 (43... Qxg2+ 44. Kf4 Qe2 45. Bxh6 Bd5 46. h5 gxh5 47. Bdg5 Qe4+ 48. Kg3 Qf3+ 49. Kh4 Qg4#) 44. Kf4 Qf3+ 45. Ke5 Bg7+) 40... Bg4 $2 {[%emt 0:03:32][%mdl 8192]} (40... Bb3 $11 41. Qc7+ Kg8 42. Qd8+ (42. Qxb7 $2 {perishes.} d1=Q+ 43. Kh2 Qd6+ 44. g3 Qxf6 $19) 42... Kf7 43. Qe7+ Kg8 44. Qd8+ (44. Qxb7 $2 d1=Q+ 45. Kh2 Qd6+ 46. g3 Qxf6 $19) 44... Kf7) 41. Qe7+ {[%emt 0:03:01]} Kg8 {[%emt 0:00:16]} 42. Qd8+ {[%emt 0:01:09]} Kf7 {[%emt 0:00:06]} 43. Qe7+ {[%emt 0:00:56]} Kg8 {[%emt 0:00:06]} 44. Qd8+ {[%emt 0:01:28]} Kf7 {[%emt 0:00:32] [#]} 45. Qd5+ $1 {[%emt 0:06:07]} Kxf6 {[%emt 0:02:43]} 46. Kg1 $4 {[%emt 0:00:30][%mdl 8192]} (46. Qxb7 {gets mated.} d1=Q+ (46... d1=B $2 {loses.} 47. Qxa6+ Ke7 48. Qb7+ Bd7 49. b5 $18) 47. Kh2 Bf4+ 48. g3 Bf3) (46. Qd4+ $18 Kf5 47. Qd7+ Ke4 48. Qxg4+ Kd3 49. Qd1) 1/2-1/2

[Event "Lliga Catalana 2024"]
[Site "Catalonia"]
[Date "2024.01.20"]
[Round "1.4"]
[White "Alonso Moyano, Jonathan"]
[Black "Jimenez Ruano, Adrian"]
[Result "1-0"]
[ECO "B90"]
[WhiteElo "2331"]
[BlackElo "2307"]
[Annotator "RC"]
[PlyCount "57"]
[EventDate "2024.01.18"]
[EventType "team-tourn"]
[EventCountry "ESP"]
[SourceTitle "playchess.com"]
[Source "ChessBase"]
[SourceQuality "1"]
[TimeControl "5400+30"]

1. e4 {[%emt 0:00:03]} c5 {[%emt 0:00:25]} 2. Nf3 {[%emt 0:00:33]} d6 {[%emt 0:00:29]} 3. d4 {[%emt 0:00:10]} cxd4 {[%emt 0:00:15]} 4. Nxd4 {[%emt 0:00:07]} Nf6 {[%emt 0:00:07]} 5. Nc3 {[%emt 0:00:06]} a6 {[%emt 0:00:04]} 6. f3 {[%emt 0:00:23]} e5 {[%emt 0:01:14]} 7. Nb3 {[%emt 0:00:07]} Be7 {[%emt 0:01:31]} 8. Be3 {[%emt 0:00:29]} Be6 {[%emt 0:00:08]} 9. Qd2 {[%emt 0:00:17]} h5 {[%emt 0:00:44]} 10. Be2 {[%emt 0:00:29]} Nbd7 {[%emt 0:00:39]} 11. Nd5 {[%emt 0:00:18]} Nxd5 {[%emt 0:05:20]} 12. exd5 {[%emt 0:00:14]} Bf5 {[%emt 0:00:01]} 13. Na5 {[%emt 0:04:04]} Qc7 {[%emt 0:03:52]} 14. c4 {[%emt 0:02:57]} O-O {[%emt 0:00:59]} 15. O-O {[%emt 0:00:26]} Bf6 {[%emt 0:09:27]} 16. Rac1 {[%emt 0:04:55]} b6 {[%emt 0:05:21]} 17. Nc6 {[%emt 0:06:26]} Nb8 {[%emt 0:01:56]} 18. f4 {[%emt 0:01:04]} Nxc6 {[%emt 0:21:12]} 19. fxe5 {[%emt 0:12:56]} Nxe5 {[%emt 0:04:46]} 20. Rxf5 {[%emt 0:00:24]} Ng4 {[%emt 0:04:20]} 21. Bxg4 {[%emt 0:00:30]} hxg4 {[%emt 0:00:30]} 22. Rxf6 {[%emt 0:00:30]} gxf6 {[%emt 0:00:05]} 23. Bd4 {[%emt 0:14:43]} Kh7 {[%emt 0:16:55]} 24. Qd3+ {[%emt 0:06:10]} Kg7 {[%emt 0:00:38]} 25. Qf5 {[%emt 0:07:28]} Rg8 {[%emt 0:06:54]} 26. Qxf6+ {[%emt 0:01:02]} Kh7 {[%emt 0:00:21]} 27. Qh4+ {[%emt 0:00:22]} Kg6 {[%emt 0:01:39]} 28. Qxg4+ {[%emt 0:00:07]} Kh6 {[%emt 0:00:06]} 29. Be3+ {[%emt 0:00:18]} 1-0

[Event "Lliga Catalana 2024"]
[Site "Catalonia"]
[Date "2024.01.20"]
[Round "1.4"]
[White "Aymerich Verdaguer, Eduard"]
[Black "Alonso Garcia, Rene Marcial"]
[Result "1/2-1/2"]
[ECO "D94"]
[WhiteElo "2218"]
[BlackElo "2295"]
[Annotator "RC"]
[PlyCount "96"]
[EventDate "2024.01.18"]
[EventType "team-tourn"]
[EventCountry "ESP"]
[SourceTitle "playchess.com"]
[Source "ChessBase"]
[SourceQuality "1"]
[TimeControl "5400+30"]

1. d4 {[%emt 0:00:03]} Nf6 {[%emt 0:00:09]} 2. c4 {[%emt 0:00:19]} g6 {[%emt 0:00:08]} 3. Nc3 {[%emt 0:00:11]} d5 {[%emt 0:00:08]} 4. Nf3 {[%emt 0:09:37]} Bg7 {[%emt 0:00:51]} 5. e3 {[%emt 0:00:33]} O-O {[%emt 0:00:10]} 6. cxd5 {[%emt 0:00:57]} Nxd5 {[%emt 0:00:03]} 7. Bc4 {[%emt 0:00:10]} Nb6 {[%emt 0:00:20]} 8. Bb3 {[%emt 0:01:01]} Nc6 {[%emt 0:00:05]} 9. O-O {[%emt 0:07:14]} e5 {[%emt 0:00:27]} 10. d5 {[%emt 0:02:42]} Na5 {[%emt 0:01:12]} 11. e4 {[%emt 0:10:50]} h6 {[%emt 0:01:42]} 12. Be3 {[%emt 0:06:57]} Nac4 {[%emt 0:08:02]} 13. Bc5 {[%emt 0:04:29]} Nd6 {[%emt 0:00:57]} 14. Nd2 {[%emt 0:13:57]} Nd7 {[%emt 0:05:56]} 15. Be3 {[%emt 0:05:47]} b6 {[%emt 0:01:32]} 16. Qe2 {[%emt 0:04:38]} Nf6 {[%emt 0:11:55]} 17. f3 {[%emt 0:05:38]} Nh5 {[%emt 0:01:54]} 18. g3 {[%emt 0:06:55]} f5 {[%emt 0:08:16]} 19. exf5 {[%emt 0:05:34]} gxf5 {[%emt 0:03:04]} 20. Rac1 {[%emt 0:01:46]} Qe8 {[%emt 0:11:30]} 21. Kh1 {[%emt 0:07:42]} f4 {[%emt 0:07:12]} 22. gxf4 {[%emt 0:00:57]} exf4 {[%emt 0:01:30]} 23. Bf2 {[%emt 0:00:06]} Bf5 {[%emt 0:34:57]} 24. Qxe8 {[%emt 0:03:32]} Raxe8 {[%emt 0:00:00]} 25. Rfe1 {[%emt 0:00:04]} Bd3 {[%emt 0:00:00]} 26. Nce4 {[%emt 0:00:46]} Be5 {[%emt 0:00:00]} 27. Bc2 {[%emt 0:00:42]} Bxc2 28. Rxc2 Nf5 {[%emt 0:00:00]} 29. Nb3 {[%emt 0:01:11]} Kh8 {[%emt 0:00:00]} 30. Rce2 {[%emt 0:00:16]} Bg7 {[%emt 0:00:00]} 31. Nc3 {[%emt 0:00:29]} Rd8 {[%emt 0:00:00]} 32. Nb5 {[%emt 0:00:46]} Rd7 {[%emt 0:04:30]} 33. Nxa7 {[%emt 0:00:10]} Rxd5 {[%emt 0:00:00]} 34. Nc6 {[%emt 0:00:02]} Rd3 {[%emt 0:00:00]} 35. Ne5 {[%emt 0:00:53]} Bxe5 {[%emt 0:00:00]} 36. Rxe5 {[%emt 0:00:01]} Rxf3 {[%emt 0:00:00]} 37. Kg2 {[%emt 0:00:06]} Rd3 {[%emt 0:00:00]} 38. Nd4 {[%emt 0:00:56]} f3+ {[%emt 0:00:00]} 39. Kf1 {[%emt 0:00:15]} Nxd4 {[%emt 0:00:00]} 40. Rxh5 {[%emt 0:00:02]} Rf6 {[%emt 0:00:00]} 41. Rd5 {[%emt 0:00:24]} Rd6 {[%emt 0:00:00]} 42. Bxd4+ {[%emt 0:02:10]} Rxd4 {[%emt 0:05:00]} 43. Rxd4 {[%emt 0:00:07]} Rxd4 {[%emt 0:00:00]} 44. Re8+ {[%emt 0:01:35]} Kg7 {[%emt 0:00:00]} 45. Re7+ {[%emt 0:00:00]} Kf6 {[%emt 0:00:00]} 46. Rxc7 {[%emt 0:00:00]} Rd1+ {[%emt 0:00:00]} 47. Kf2 {[%emt 0:00:00]} Rd2+ {[%emt 0:00:00]} 48. Kxf3 {[%emt 0:00:00]} Rxb2 {[%emt 0:03:00]} 1/2-1/2

[Event "Lliga Catalana 2024"]
[Site "Catalonia"]
[Date "2024.01.20"]
[Round "1.5"]
[White "Masague Artero, Guerau"]
[Black "Villa Tornero, Alex"]
[Result "0-1"]
[ECO "A70"]
[WhiteElo "2324"]
[BlackElo "2321"]
[Annotator "RC"]
[PlyCount "116"]
[EventDate "2024.01.18"]
[EventType "team-tourn"]
[EventCountry "ESP"]
[SourceTitle "playchess.com"]
[Source "ChessBase"]
[SourceQuality "1"]
[TimeControl "5400+30"]

1. d4 {[%emt 0:00:04]} Nf6 {[%emt 0:00:27]} 2. c4 {[%emt 0:00:07]} e6 {[%emt 0:00:23]} 3. Nc3 {[%emt 0:00:14]} c5 {[%emt 0:00:49]} 4. d5 {[%emt 0:00:06]} exd5 {[%emt 0:00:06]} 5. cxd5 {[%emt 0:00:04]} d6 {[%emt 0:00:09]} 6. e4 {[%emt 0:00:07]} g6 {[%emt 0:00:32]} 7. Nf3 {[%emt 0:00:13]} Bg7 {[%emt 0:01:45]} 8. Bd3 {[%emt 0:00:29]} O-O {[%emt 0:00:24]} 9. h3 {[%emt 0:00:15]} b5 {[%emt 0:00:05]} 10. Nxb5 {[%emt 0:00:11]} Re8 {[%emt 0:01:24]} 11. O-O {[%emt 0:00:09]} Nxe4 {[%emt 0:01:24]} 12. Re1 {[%emt 0:00:08]} a6 {[%emt 0:03:49]} 13. Nc3 {[%emt 0:00:07]} Nxc3 {[%emt 0:03:27]} 14. bxc3 {[%emt 0:00:06]} Rxe1+ {[%emt 0:01:20]} 15. Qxe1 {[%emt 0:00:13]} Nd7 {[%emt 0:06:20]} 16. Rb1 {[%emt 0:06:16]} Ne5 {[%emt 0:11:22]} 17. Nxe5 {[%emt 0:01:24]} Bxe5 {[%emt 0:00:20]} 18. Bh6 {[%emt 0:08:57]} Bd7 {[%emt 0:07:39]} 19. Qd2 {[%emt 0:14:06]} Rb8 {[%emt 0:07:28]} 20. Rxb8 {[%emt 0:09:21]} Qxb8 {[%emt 0:00:16]} 21. f4 {[%emt 0:03:23]} Bf6 {[%emt 0:01:58]} 22. Bxa6 {[%emt 0:09:47]} Qb6 {[%emt 0:04:59]} 23. Bc4 {[%emt 0:02:34]} Qa5 {[%emt 0:02:48]} 24. Qe2 {[%emt 0:01:27]} Qxc3 {[%emt 0:01:11]} 25. Bb5 {[%emt 0:03:45]} Qc1+ {[%emt 0:10:38]} 26. Kh2 {[%emt 0:07:40]} Bg7 {[%emt 0:00:31]} 27. Bxd7 {[%emt 0:09:20]} Bxh6 {[%emt 0:00:15]} 28. g3 {[%emt 0:00:01]} Bg7 {[%emt 0:00:54]} 29. Qe8+ {[%emt 0:02:46]} Bf8 {[%emt 0:00:05]} 30. Qe2 {[%emt 0:01:15]} c4 {[%emt 0:02:37]} 31. f5 {[%emt 0:03:31]} c3 {[%emt 0:02:10]} 32. Ba4 {[%emt 0:03:50]} Qg5 {[%emt 0:03:13]} 33. Bc2 {[%emt 0:01:33]} Be7 {[%emt 0:01:27]} 34. h4 {[%emt 0:03:38]} Qf6 {[%emt 0:00:36]} 35. Qe4 {[%emt 0:01:32]} Kg7 {[%emt 0:01:36]} 36. Kg2 {[%emt 0:00:37]} Bd8 {[%emt 0:01:27]} 37. a4 {[%emt 0:00:16]} Bb6 {[%emt 0:00:41]} 38. Kh3 {[%emt 0:01:48]} Qxf5+ {[%emt 0:07:54]} 39. Qxf5 {[%emt 0:00:09]} gxf5 {[%emt 0:00:03]} 40. Bxf5 {[%emt 0:00:37]} h5 {[%emt 0:02:35]} 41. g4 {[%emt 0:00:53]} Kf6 {[%emt 0:00:27]} 42. Bc2 {[%emt 0:00:36]} Ke5 {[%emt 0:00:47]} 43. Bb3 {[%emt 0:02:04]} hxg4+ {[%emt 0:03:52]} 44. Kxg4 {[%emt 0:00:06]} Ke4 {[%emt 0:00:05]} 45. h5 {[%emt 0:02:47]} f5+ {[%emt 0:00:08]} 46. Kh3 {[%emt 0:00:47]} f4 {[%emt 0:01:12]} 47. h6 {[%emt 0:02:07]} f3 {[%emt 0:00:10]} 48. h7 {[%emt 0:00:05]} Bd4 {[%emt 0:00:02]} 49. a5 {[%emt 0:00:12]} Kd3 {[%emt 0:01:54]} 50. a6 {[%emt 0:00:28]} f2 {[%emt 0:00:53]} 51. Kg2 {[%emt 0:01:05]} Ke2 {[%emt 0:00:07]} 52. Bc4+ {[%emt 0:00:21]} Ke1 {[%emt 0:01:56]} 53. a7 {[%emt 0:01:54]} c2 {[%emt 0:00:11]} 54. a8=Q {[%emt 0:00:08]} c1=Q {[%emt 0:00:30]} 55. Qe8+ {[%emt 0:01:43]} Be5 {[%emt 0:00:42]} 56. h8=Q {[%emt 0:00:36]} Qg5+ {[%emt 0:00:17]} 57. Kf3 {[%emt 0:00:30]} Qf4+ {[%emt 0:00:20]} 58. Kg2 {[%emt 0:00:04]} Qg3+ {[%emt 0:00:05]} 0-1

[Event "Lliga Catalana 2024"]
[Site "Catalonia"]
[Date "2024.01.20"]
[Round "1.5"]
[White "Ortega Serra, Marc"]
[Black "Juan Albert, Garcia Caro"]
[Result "1-0"]
[ECO "B07"]
[WhiteElo "2265"]
[BlackElo "2205"]
[Annotator "RC"]
[PlyCount "77"]
[EventDate "2024.01.18"]
[EventType "team-tourn"]
[EventCountry "ESP"]
[SourceTitle "playchess.com"]
[Source "ChessBase"]
[SourceQuality "1"]
[TimeControl "5400+30"]

1. d4 {[%emt 0:03:40]} Nf6 {[%emt 0:03:17]} 2. Nf3 {[%emt 0:01:17]} g6 {[%emt 0:03:10]} 3. g3 {[%emt 0:00:08]} Bg7 {[%emt 0:01:26]} 4. Bg2 {[%emt 0:00:08]} O-O {[%emt 0:00:43]} 5. O-O {[%emt 0:00:07]} d6 {[%emt 0:05:11]} 6. a4 {[%emt 0:00:22]} Nbd7 {[%emt 0:02:39]} 7. a5 {[%emt 0:02:41]} c6 {[%emt 0:02:57]} 8. Nc3 {[%emt 0:01:20]} Qc7 {[%emt 0:03:54]} 9. e4 {[%emt 0:03:03]} e5 {[%emt 0:06:23]} 10. h3 {[%emt 0:00:49]} Re8 {[%emt 0:04:05]} 11. dxe5 {[%emt 0:06:45]} dxe5 {[%emt 0:03:33]} 12. Be3 {[%emt 0:00:07]} Bf8 {[%emt 0:05:00]} 13. Nd2 {[%emt 0:06:16]} Nh5 {[%emt 0:18:07]} 14. Nc4 {[%emt 0:12:29]} Nc5 {[%emt 0:03:51]} 15. Na4 {[%emt 0:07:46]} Nxa4 {[%emt 0:07:27]} 16. Rxa4 {[%emt 0:01:03]} Be6 {[%emt 0:00:31]} 17. Qe2 {[%emt 0:00:11]} c5 {[%emt 0:02:26]} 18. Rfa1 {[%emt 0:03:06]} Rad8 {[%emt 0:02:17]} 19. Bd2 {[%emt 0:15:58]} f6 {[%emt 0:04:51]} 20. Bc3 {[%emt 0:00:37]} Bd7 {[%emt 0:03:40]} 21. R4a3 {[%emt 0:01:40]} Qc8 {[%emt 0:02:07]} 22. Kh2 {[%emt 0:00:30]} Bb5 {[%emt 0:00:07]} 23. Bf1 {[%emt 0:00:24]} Kh8 {[%emt 0:04:45]} 24. Qf3 {[%emt 0:06:08]} Bc6 {[%emt 0:01:28]} 25. g4 {[%emt 0:04:15]} Ng7 {[%emt 0:04:46]} 26. Qxf6 {[%emt 0:00:47]} Bxe4 {[%emt 0:01:23]} 27. Nxe5 {[%emt 0:02:22]} Rd4 {[%emt 0:03:07]} 28. Bxd4 {[%emt 0:09:06]} cxd4 {[%emt 0:00:21]} 29. Bc4 {[%emt 0:01:42]} Rxe5 {[%emt 0:00:54]} 30. Qxe5 {[%emt 0:00:01]} Qc6 {[%emt 0:00:30]} 31. Qb5 {[%emt 0:00:35]} Qc7+ {[%emt 0:00:29]} 32. Rg3 {[%emt 0:00:27]} a6 {[%emt 0:00:34]} 33. Qb3 {[%emt 0:00:23]} h5 {[%emt 0:00:07]} 34. Kg1 {[%emt 0:02:00]} h4 {[%emt 0:00:14]} 35. Rf3 {[%emt 0:00:10]} Bd6 {[%emt 0:00:34]} 36. Bd5 {[%emt 0:00:13]} Bxf3 {[%emt 0:01:01]} 37. Bxf3 {[%emt 0:00:51]} Bh2+ {[%emt 0:00:30]} 38. Kf1 {[%emt 0:00:51]} Qf4 {[%emt 0:00:34]} 39. Re1 {[%emt 0:00:29]} 1-0